bitfinex/quotes_ETHUSD_20250318
["timestamp","ask_amount","ask_price","bid_price","bid_amount"]
[1742341924137,2.16931586,1936.7,1936.6,41.48044782]
[1742341925261,2.16931586,1936.7,1936.6,45.6284926]
[1742341926861,7.33273586,1936.7,1936.6,45.6284926]
[1742341927062,2.16931586,1936.7,1936.6,45.6284926]
[1742341929448,2.16931586,1936.7,1936.6,10.6284926]
[1742341929651,2.16931586,1936.7,1936.6,6.48044782]
[1742341931368,2.16931586,1936.7,1936.6,6.09611519]
[1742341934271,7.33273586,1936.7,1936.6,41.4805113]
[1742341935063,2.16931586,1936.7,1936.6,41.4805113]
[1742341935360,2.16931586,1936.7,1936.6,45.62856243]
[1742341936470,2.16931586,1936.7,1936.6,10.62856243]
[1742341936633,2.16931586,1936.7,1936.6,6.4805113]
[1742341938481,10.32513,1937.1,1936.7,5.16341]
[1742341938685,2.16931586,1936.8,1936.7,5.16341]
[1742341939486,2.16931586,1936.8,1936.6,12.85734922]
[1742341939685,5.16265,1937.0,1936.7,1.28573492]
[1742341940389,5.16252,1937.1,1936.7,6.44912492]
[1742341940685,5.16252,1937.1,1936.7,6.83352103]
[1742341941298,5.16252,1937.1,1936.7,6.83338103]
[1742341941582,2.16931586,1936.8,1936.7,7.38338103]
[1742341941754,2.16931586,1936.8,1936.7,10.38338103]
[1742341941956,5.16252,1937.1,1936.8,0.38439611]
[1742341942162,2.16931586,1936.9,1936.8,8.44230421]
[1742341942685,2.16931586,1936.9,1936.8,11.44230421]
[1742341943252,8.10463586,1937.4,1937.0,5.16252]
[1742341943487,8.10463586,1937.4,1937.1,4.941]
[1742341943783,8.10463586,1937.4,1937.1,6.030362]
[1742341943991,2.16931586,1937.2,1937.1,11.192712]
[1742341944283,2.16931586,1937.2,1937.1,6.030362]
[1742341944687,4.33863172,1937.2,1936.8,3.27915421]
[1742341944886,4.33863172,1936.9,1936.8,0.38439611]
[1742341945121,4.33863172,1936.9,1936.8,8.32439611]
[1742341945283,4.33863172,1936.9,1936.8,7.94]
[1742341945483,2.16931586,1936.9,1936.8,7.94]
[1742341946093,2.16931586,1936.9,1936.8,8.78525282]
[1742341946782,2.16931586,1936.9,1936.8,9.16895185]
[1742341948081,2.16931586,1936.9,1936.8,14.33210185]
[1742341948902,2.16931586,1936.9,1936.8,14.46342618]
[1742341949302,2.16931586,1936.9,1936.8,9.30027618]
[1742341952398,5.1621,1937.2,1936.8,15.01322618]
[1742341952619,5.1621,1937.2,1936.9,1.50132262]
[1742341952825,5.1621,1937.2,1937.0,0.13112476]
[1742341953534,2.16931586,1937.1,1937.0,0.13112476]
[1742341955542,2.16931586,1937.1,1937.0,0.51456491]
[1742341956411,2.16931586,1937.1,1937.0,4.57036715]
[1742341956614,2.16931586,1937.1,1937.0,5.77065513]
[1742341958432,5.16188,1937.3,1937.1,0.7685]
[1742341958631,0.7599,1937.9,1937.3,0.55]
[1742341958832,5.16141,1937.5,1937.2,8.4539069]
[1742341959035,5.16141,1937.5,1937.3,0.13080403]
[1742341959343,5.16155,1937.4,1937.3,0.13080403]
[1742341959845,9.50018172,1937.4,1937.3,0.13080403]
[1742341960045,4.33863172,1937.4,1937.3,0.13080403]
[1742341960227,5.92126,1937.5,1937.3,0.63778443]
[1742341960430,2.16931586,1937.4,1937.3,0.63778443]
[1742341960929,2.16931586,1937.4,1937.3,1.65487392]
[1742341961129,3.61203262,1937.4,1937.3,1.65487392]
[1742341962640,3.61203262,1937.4,1937.3,2.03776124]
[1742341963353,8.77358262,1937.4,1937.3,1.53078084]
[1742341964828,9.53348262,1937.4,1937.3,5.45169135]
[1742341965034,9.53348262,1937.4,1937.3,0.38288732]
[1742341965751,9.53348262,1937.4,1937.3,0.50914842]
[1742341966522,8.77358262,1937.4,1937.3,0.50914842]
[1742341967335,8.77358262,1937.4,1937.3,0.1262611]
[1742341967748,3.61203262,1937.4,1937.3,0.1262611]
[1742341968635,3.61203262,1937.4,1937.3,0.70953721]
[1742341970430,3.61203262,1937.4,1937.3,0.1262611]
[1742341970631,3.61203262,1937.4,1937.3,0.50946699]
[1742341972361,3.61203262,1937.4,1937.3,35.50946699]
[1742341973960,3.61203262,1937.5,1937.3,35.50946699]
[1742341974148,3.61203262,1937.4,1937.3,35.50946699]
[1742341974331,3.61203262,1937.4,1937.3,40.14726969]
[1742341974954,8.77358262,1937.4,1937.3,40.14726969]
[1742341975153,8.77358262,1937.4,1937.3,35.50946699]
[1742341977270,3.61203262,1937.4,1937.3,35.50946699]
[1742341977443,5.16103,1937.6,1937.3,35.50946699]
[1742341977643,3.61203262,1937.5,1937.3,35.50946699]
[1742341977848,5.16103,1937.6,1937.3,35.50946699]
[1742341978048,3.61203262,1937.5,1937.4,3.5509467]
[1742341978355,3.61203262,1937.5,1937.4,3.6769579]
[1742341978539,3.61203262,1937.5,1937.4,0.1260112]
[1742341978740,3.61203262,1937.5,1937.4,35.1260112]
[1742341978944,3.61203262,1937.5,1937.4,35.0]
[1742341979138,3.61203262,1937.5,1937.4,35.12588966]
[1742341979338,3.61203262,1937.6,1937.5,0.7885]
[1742341979758,3.61203262,1937.6,1937.5,0.91428993]
[1742341979965,3.61203262,1937.6,1937.5,0.12578993]
[1742341980563,8.77305262,1937.6,1937.5,0.12578993]
[1742341980768,8.77305262,1937.6,1937.5,0.50899582]
[1742341981546,9.59395262,1937.6,1937.5,0.50899582]
[1742341985066,9.59395262,1937.6,1937.5,35.50899582]
[1742341986669,8.77305262,1937.6,1937.5,35.50899582]
[1742341993771,12.38508524,1937.6,1937.5,0.50899582]
[1742341994092,9.60285262,1937.6,1937.5,0.50899582]
[1742341994300,14.6912455,1937.6,1937.5,0.50899582]
[1742341995416,14.6912455,1937.6,1937.5,0.12578993]
[1742341995791,9.60285262,1937.6,1937.5,0.60564114]
[1742341996096,9.57175262,1937.6,1937.5,0.60564114]
[1742341998141,13.18378524,1937.6,1937.5,0.60564114]
[1742341998835,13.18378524,1937.6,1937.5,0.98989364]
[1742342001536,10.29472646,1937.6,1937.5,0.98989364]
[1742342003848,7.29742323,1937.6,1937.5,0.98989364]
[1742342005171,8.74173336,1937.6,1937.5,0.98989364]
[1742342011827,3.61181336,1937.6,1937.5,0.98989364]
[1742342012166,3.61181336,1937.6,1937.5,4.69478727]
[1742342012458,3.61181336,1937.7,1937.5,5.49278727]
[1742342012654,3.61181336,1937.7,1937.5,1.78789364]
[1742342012862,3.61181336,1937.7,1937.6,35.0]
[1742342013454,3.61181336,1937.7,1937.6,35.12502868]
[1742342013830,8.77256336,1937.7,1937.6,35.50928118]
[1742342014458,8.77256336,1937.7,1937.6,0.50928118]
[1742342015258,8.77256336,1937.7,1937.6,0.98913239]
[1742342016156,10.2425787,1937.7,1937.6,0.98913239]
[1742342016328,14.63009206,1937.7,1937.6,0.98913239]
[1742342017155,14.63009206,1937.7,1937.6,0.60487989]
[1742342017539,11.0182787,1937.7,1937.6,0.60487989]
[1742342017741,14.63009206,1937.7,1937.6,0.60487989]
[1742342017943,11.0182787,1937.7,1937.6,0.60487989]
[1742342018124,9.54826336,1937.7,1937.6,0.60487989]
[1742342018661,9.54826336,1937.7,1937.6,0.12502868]
[1742342018866,5.16129,1937.5,1937.4,1.05904268]
[1742342019032,8.77310336,1937.5,1937.4,1.05904268]
[1742342019369,8.77310336,1937.5,1937.4,1.18435659]
[1742342019531,8.77310336,1937.5,1937.4,1.66460851]
[1742342021781,5.16068,1937.8,1937.4,1.66460851]
[1742342022085,5.16068,1937.8,1937.5,0.7843]
[1742342022086,3.61181336,1937.6,1937.5,0.7843]
[1742342022250,3.61181336,1937.6,1937.5,0.12522132]
[1742342022452,3.61181336,1937.6,1937.5,0.60547324]
[1742342022878,8.77283336,1937.6,1937.5,0.60547324]
[1742342023080,13.16034672,1937.6,1937.5,0.60547324]
[1742342023462,9.54853336,1937.6,1937.5,0.60547324]
[1742342024074,4.38751336,1937.6,1937.5,0.60547324]
[1742342024276,3.61181336,1937.6,1937.5,0.60547324]
[1742342024784,8.77283336,1937.6,1937.5,0.60547324]
[1742342025555,3.61181336,1937.6,1937.5,0.60547324]
[1742342025760,8.77283336,1937.6,1937.5,0.60547324]
[1742342026381,3.61181336,1937.6,1937.5,0.60547324]
[1742342026586,3.61181336,1937.6,1937.5,1.26532483]
[1742342026855,8.77283336,1937.6,1937.5,0.60547324]
[1742342031363,3.61181336,1937.6,1937.5,0.60547324]
[1742342037094,8.77283336,1937.6,1937.5,0.60547324]
[1742342037593,9.56813336,1937.6,1937.5,0.60547324]
[1742342037791,12.38464672,1937.6,1937.5,0.60547324]
[1742342037991,5.16208,1937.2,1937.1,6.46209666]
[1742342038300,3.61181336,1937.2,1937.1,6.46209666]
[1742342038472,3.61181336,1937.2,1937.1,6.57456879]
[1742342038800,3.61181336,1937.2,1937.1,6.06204064]
[1742342040576,8.77389336,1937.2,1937.1,6.06204064]
[1742342043834,3.61181336,1937.2,1937.1,6.06204064]
[1742342048413,8.77389336,1937.2,1937.1,6.06204064]
[1742342049240,3.61181336,1937.2,1937.1,6.06204064]
[1742342050643,3.61181336,1937.2,1937.1,6.5410293]
[1742342051458,0.7985,1937.5,1937.1,13.38736798]
[1742342051662,3.61181336,1937.6,1937.2,5.16194]
[1742342051945,5.95908,1937.8,1937.4,5.16145]
[1742342052104,5.16058,1937.8,1937.5,5.04548644]
[1742342052510,3.61181336,1937.6,1937.5,5.04548644]
[1742342052710,3.61181336,1937.6,1937.5,6.06618008]
[1742342054320,3.61181336,1937.6,1937.5,7.59751766]
[1742342057012,3.61181336,1937.6,1937.5,12.75880766]
[1742342057213,3.61181336,1937.6,1937.5,13.51160766]
[1742342057959,3.61181336,1937.6,1937.5,8.35031766]
[1742342060864,3.61181336,1937.6,1937.5,13.51160766]
[1742342061255,3.61181336,1937.6,1937.5,8.35031766]
[1742342063428,3.61181336,1937.6,1937.5,13.51160766]
[1742342063630,5.9453,1938.1,1937.7,5.16065]
[1742342063826,3.61181336,1937.9,1937.8,1.307465]
[1742342064033,5.15955,1938.2,1937.8,0.90284786]
[1742342064230,10.31921,1938.2,1937.9,4.931]
[1742342064549,5.15969,1938.1,1938.0,0.11115587]
[1742342066865,5.1609,1937.7,1937.3,12.37492815]
[1742342067067,3.61181336,1937.4,1937.3,6.23492815]
[1742342067230,3.61181336,1937.4,1937.3,1.69147079]
[1742342067435,3.61181336,1937.4,1937.3,0.51252815]
[1742342068067,3.61181336,1937.4,1937.3,1.57087208]
[1742342068253,3.61181336,1937.4,1937.3,1.53615801]
[1742342068839,3.61181336,1937.4,1937.3,2.32755801]
[1742342074284,3.61181336,1937.4,1937.3,37.42330435]
[1742342074483,3.61181336,1937.4,1937.3,42.17494279]
[1742342074784,3.61181336,1937.4,1937.3,47.33676279]
[1742342083286,3.61181336,1937.4,1937.3,46.54536279]
[1742342083862,8.77336336,1937.4,1937.3,1.63190435]
[1742342084062,3.61181336,1937.4,1937.3,6.56190435]
[1742342084469,3.61181336,1937.4,1937.3,42.35760435]
[1742342084673,3.61181336,1937.4,1937.3,47.51942435]
[1742342086496,3.61181336,1937.4,1937.3,48.06942435]
[1742342086792,5.95814,1937.7,1937.3,53.30763184]
[1742342087000,3.61181336,1937.5,1937.4,5.16155]
[1742342087170,3.61181336,1937.5,1937.4,5.25745942]
[1742342087702,3.61181336,1937.5,1937.4,43.25745942]
[1742342087997,3.61181336,1937.5,1937.4,43.7352735]
[1742342088166,3.61181336,1937.5,1937.4,48.97348099]
[1742342093503,3.61181336,1937.5,1937.4,13.97348099]
[1742342093704,3.61181336,1937.5,1937.4,8.7352735]
[1742342094471,3.61181336,1937.5,1937.4,3.5737235]
[1742342094679,8.77310336,1937.5,1937.4,8.5037235]
[1742342094986,3.61181336,1937.5,1937.4,8.5037235]
[1742342095186,5.9581,1937.7,1937.4,8.5037235]
[1742342095407,2.16708356,1937.5,1937.4,8.5037235]
[1742342095607,2.16708356,1937.5,1937.4,13.47610324]
[1742342098233,2.16708356,1937.5,1937.4,8.5037235]
[1742342098729,2.16708356,1937.5,1937.4,48.6652735]
[1742342099388,2.16708356,1937.5,1937.4,43.5037235]
[1742342100326,8.10907356,1937.5,1937.4,8.5037235]
[1742342101813,2.94778356,1937.5,1937.4,8.5037235]
[1742342103233,2.16708356,1937.5,1937.4,8.5037235]
[1742342104246,2.16708356,1937.5,1937.4,43.5037235]
[1742342105627,2.16708356,1937.6,1937.4,54.46756124]
[1742342105928,2.16708356,1937.6,1937.5,5.16123]
[1742342106445,2.16708356,1937.6,1937.5,5.25722433]
[1742342106863,2.16708356,1937.6,1937.5,5.73503841]
[1742342107017,2.16708356,1937.6,1937.5,10.9732459]
[1742342107348,3.61087719,1937.7,1937.5,10.9732459]
[1742342107552,3.61087719,1937.7,1937.5,5.73503841]
[1742342107757,3.61087719,1937.7,1937.5,40.73503841]
[1742342107951,3.61087719,1937.7,1937.6,0.47781408]
[1742342108262,3.61087719,1937.7,1937.6,0.57370869]
[1742342111057,3.61087719,1937.7,1937.6,1.60906927]
[1742342118190,3.61087719,1937.7,1937.6,2.2861032]
[1742342119396,3.61087719,1937.7,1937.6,1.60906927]
[1742342126001,5.99053,1938.0,1937.6,7.53914927]
[1742342126299,5.99053,1938.0,1937.6,12.70001927]
[1742342126300,3.61087719,1937.9,1937.6,12.70001927]
[1742342126483,3.61087719,1937.9,1937.6,7.53903927]
[1742342126672,8.77111719,1937.9,1937.6,2.37816927]
[1742342126871,8.77111719,1937.9,1937.6,7.53917927]
[1742342127073,2.16645622,1937.7,1937.6,7.53917927]
[1742342127305,2.16645622,1937.7,1937.6,8.8092132]
[1742342131807,13.31706622,1938.0,1937.6,8.8092132]
[1742342131808,0.8305,1938.0,1937.7,3.0]
[1742342131979,2.16645622,1938.1,1937.9,5.16007]
[1742342132180,2.16645622,1938.0,1937.9,5.16007]
[1742342132379,2.16645622,1938.0,1937.9,6.761734]
[1742342133015,2.16645622,1938.0,1937.9,7.23954808]
[1742342135131,5.15892,1938.4,1938.0,5.15983]
[1742342135290,10.31801,1938.4,1938.0,5.15983]
[1742342135725,10.31801,1938.4,1938.1,0.47781408]
[1742342135890,10.31801,1938.4,1938.2,4.926]
[1742342136318,2.16645622,1938.3,1938.2,4.926]
[1742342136521,7.32561622,1938.3,1938.2,4.926]
[1742342139259,2.16645622,1938.3,1938.2,4.926]
[1742342139533,2.16645622,1938.3,1938.2,5.4186]
[1742342140326,2.16645622,1938.3,1938.2,6.45781496]
[1742342140541,2.16645622,1938.3,1938.2,5.96521496]
[1742342140914,8.09821622,1938.3,1938.2,6.05053078]
[1742342142449,2.93905622,1938.3,1938.2,6.05053078]
[1742342143945,2.93905622,1938.3,1938.2,1.12453078]
[1742342143946,8.09821622,1938.3,1938.2,1.12453078]
[1742342144119,10.26467244,1938.3,1938.2,0.08531582]
[1742342144320,9.64057346,1938.3,1938.2,0.08531582]
[1742342144517,5.15969,1938.1,1938.0,4.925]
[1742342144825,5.15995,1938.0,1937.9,5.96266312]
[1742342145019,9.49286244,1938.0,1937.9,5.96266312]
[1742342145227,2.16645622,1938.0,1937.9,5.96266312]
[1742342145427,2.16645622,1938.0,1937.9,7.36122943]
[1742342145621,2.16645622,1938.0,1937.9,12.52144943]
[1742342145861,2.16645622,1938.2,1937.9,12.52121943]
[1742342146159,2.16645622,1938.1,1938.0,5.15983]
[1742342146363,2.16645622,1938.2,1938.0,5.15981]
[1742342146566,2.16645622,1938.2,1938.1,6.477973]
[1742342147369,3.60859611,1938.3,1938.1,6.477973]
[1742342148671,3.60859611,1938.2,1938.1,6.477973]
[1742342148839,3.60859611,1938.2,1938.1,41.477973]
[1742342149373,3.60859611,1938.2,1938.1,35.515983]
[1742342153776,3.60859611,1938.3,1938.1,35.515983]
[1742342153965,3.60859611,1938.3,1938.2,3.5515983]
[1742342154475,3.60859611,1938.3,1938.1,0.515983]
[1742342154678,5.1589,1938.4,1938.2,35.0]
[1742342154855,5.1589,1938.4,1938.3,4.924]
[1742342155884,5.1589,1938.4,1938.3,5.00889661]
[1742342161956,8.76749611,1938.4,1938.3,5.00889661]
[1742342164094,8.76678611,1938.7,1938.3,11.29573274]
[1742342164303,3.60859611,1938.4,1938.3,6.13667274]
[1742342165373,3.60859611,1938.4,1938.3,5.00889661]
[1742342165969,5.1581,1938.7,1938.3,5.00889661]
[1742342166169,3.60859611,1938.6,1938.3,10.16795661]
[1742342166495,3.60859611,1938.5,1938.3,10.16795661]
[1742342167191,5.15836,1938.6,1938.3,5.00889661]
[1742342167192,2.16483021,1938.4,1938.3,5.00889661]
[1742342167493,2.16483021,1938.4,1938.3,9.74431586]
[1742342168592,2.16483021,1938.4,1938.3,14.90347586]
[1742342169495,2.16483021,1938.4,1938.3,9.74431586]
[1742342170617,2.16483021,1938.4,1938.3,9.74231586]
[1742342170807,2.16483021,1938.4,1938.3,40.00689661]
[1742342174334,7.32372021,1938.4,1938.3,5.00689661]
[1742342174697,7.32372021,1938.4,1938.3,40.00689661]
[1742342175601,2.16483021,1938.4,1938.3,40.00689661]
[1742342176132,7.32372021,1938.4,1938.3,5.00689661]
[1742342177097,2.16483021,1938.4,1938.3,5.00689661]
[1742342178135,7.32372021,1938.4,1938.3,5.00689661]
[1742342179249,2.16483021,1938.4,1938.3,5.00689661]
[1742342179452,7.32372021,1938.4,1938.3,5.00689661]
[1742342180128,7.32372021,1938.4,1938.3,40.00689661]
[1742342182153,2.16483021,1938.4,1938.3,40.00689661]
[1742342182521,7.32372021,1938.4,1938.3,40.00689661]
[1742342182722,8.09392021,1938.4,1938.3,5.00589661]
[1742342186632,7.32372021,1938.4,1938.3,5.00589661]
[1742342198459,2.16483021,1938.4,1938.3,5.00589661]
[1742342199359,7.32372021,1938.4,1938.3,5.00589661]
[1742342201762,11.50969344,1938.4,1938.3,0.08489661]
[1742342202062,5.16022,1937.9,1937.8,5.43252815]
[1742342202263,7.32505021,1937.9,1937.8,5.43252815]
[1742342202566,7.32505021,1937.9,1937.8,5.51179588]
[1742342203070,7.32505021,1937.9,1937.8,4.99926773]
[1742342203273,7.32505021,1937.9,1937.8,6.05218787]
[1742342209082,11.37294732,1937.9,1937.8,0.07926773]
[1742342209248,11.37294732,1937.9,1937.2,5.43252815]
[1742342209455,7.32665021,1937.3,1937.2,39.92]
[1742342209657,7.32665021,1937.3,1937.2,35.0]
[1742342209952,5.16208,1937.2,1937.1,5.43252815]
[1742342210183,7.32691021,1937.2,1937.1,5.43252815]
[1742342210569,8.07751021,1937.2,1937.1,0.51252815]
[1742342210969,5.16235,1937.1,1937.0,4.92]
[1742342211189,3.61388053,1937.1,1937.0,4.92]
[1742342211392,3.61388053,1937.2,1937.0,4.92]
[1742342211755,3.61388053,1937.2,1937.0,9.504973]
[1742342211961,3.61388053,1937.3,1937.0,14.667483]
[1742342212162,3.61388053,1937.3,1937.0,15.72635582]
[1742342212468,3.61388053,1937.3,1937.1,5.16231]
[1742342212869,3.61388053,1937.3,1937.2,35.0]
[1742342213064,3.61388053,1937.3,1937.1,5.16231]
[1742342213265,3.61388053,1937.4,1937.1,6.79267228]
[1742342213586,3.61388053,1937.4,1937.2,40.92908]
[1742342213792,3.61388053,1937.5,1937.2,40.92908]
[1742342214180,3.61388053,1937.5,1937.3,5.16179]
[1742342214486,3.61388053,1937.5,1937.4,5.437179]
[1742342214670,3.61388053,1937.5,1937.4,4.921]
[1742342214871,8.77517053,1937.5,1937.4,39.921]
[1742342215591,8.77517053,1937.5,1937.4,4.921]
[1742342215894,8.77517053,1937.5,1937.4,4.99078206]
[1742342216088,3.61388053,1937.5,1937.4,4.99078206]
[1742342218695,8.77517053,1937.5,1937.4,4.99078206]
[1742342218897,3.61388053,1937.5,1937.4,4.99078206]
[1742342220092,3.61388053,1937.5,1937.4,6.0102799]
[1742342221468,3.61388053,1937.5,1937.4,6.61130789]
[1742342224217,9.52577053,1937.5,1937.4,6.61130789]
[1742342224422,9.52577053,1937.5,1937.4,1.0892799]
[1742342224922,9.52577053,1937.5,1937.4,0.06978206]
[1742342225239,5.16221,1937.2,1936.9,6.907]
[1742342225444,3.61388053,1937.1,1937.0,4.92]
[1742342225598,3.61388053,1937.2,1937.0,4.92]
[1742342225800,3.61388053,1937.2,1937.0,6.1027]
[1742342226016,3.61388053,1937.2,1937.0,4.92]
[1742342226223,3.61388053,1937.2,1937.0,5.98061624]
[1742342227031,3.61388053,1937.2,1937.0,11.14323624]
[1742342227229,3.61388053,1937.2,1937.0,5.98061624]
[1742342227397,8.77576053,1937.3,1937.0,5.98061624]
[1742342227597,8.77576053,1937.3,1937.0,7.17165286]
[1742342228128,3.61388053,1937.3,1937.0,12.33424286]
[1742342228318,3.61388053,1937.3,1937.0,17.49675286]
[1742342228526,3.61388053,1937.3,1937.0,12.33416286]
[1742342228701,8.77546053,1937.4,1937.0,12.33416286]
[1742342229029,3.61388053,1937.3,1937.1,1.23341629]
[1742342230940,3.61388053,1937.3,1937.2,0.07034227]
[1742342231705,3.61388053,1937.3,1937.0,12.33411286]
[1742342231906,3.61388053,1937.3,1937.2,0.07034227]
[1742342232141,3.61388053,1937.3,1937.1,0.07044203]
[1742342232335,3.61388053,1937.2,1937.0,11.14307624]
[1742342232736,3.61388053,1937.1,1937.0,1.06061624]
[1742342232911,8.77623053,1937.1,1937.0,5.98061624]
[1742342234210,10.25206158,1937.1,1937.0,5.98061624]
[1742342234409,10.25206158,1937.1,1937.0,4.92]
[1742342234606,10.25206158,1937.1,1936.8,3.0]
[1742342234812,8.77687053,1936.9,1936.6,3.8016]
[1742342235023,8.77687053,1936.9,1936.8,3.0]
[1742342235224,8.77687053,1936.9,1936.8,4.02949471]
[1742342235540,8.77687053,1936.9,1936.8,5.94949471]
[1742342235541,9.59677053,1936.9,1936.8,5.94949471]
[1742342235743,5.16357,1936.7,1936.4,1.31412815]
[1742342236042,3.61388053,1936.6,1936.5,4.92]
[1742342237441,3.61388053,1936.7,1936.5,5.96032178]
[1742342237645,3.61388053,1936.8,1936.5,11.12419178]
[1742342237944,3.61388053,1936.8,1936.5,12.83318896]
[1742342238244,8.77716053,1936.8,1936.5,7.66931896]
[1742342238452,3.61388053,1936.8,1936.5,12.83326896]
[1742342240149,3.61388053,1936.8,1936.6,5.16364]
[1742342240451,3.61388053,1936.9,1936.6,5.16364]
[1742342241721,3.61388053,1936.9,1936.7,0.8136]
[1742342241938,5.98228,1937.1,1936.7,5.97702]
[1742342242169,3.61388053,1937.0,1936.7,5.97702]
[1742342242636,3.61388053,1937.2,1936.9,5.16286]
[1742342242838,3.61388053,1937.2,1937.0,4.92]
[1742342245961,3.61388053,1937.2,1937.1,0.07112133]
[1742342247380,8.77596053,1937.2,1937.1,0.07112133]
[1742342247537,10.25082858,1937.2,1937.1,0.07112133]
[1742342248280,5.16262,1937.0,1936.9,5.93433444]
[1742342248477,8.77650053,1937.0,1936.9,5.93433444]
[1742342249658,3.61388053,1937.0,1936.9,5.93433444]
[1742342250650,3.61388053,1937.1,1936.9,5.93433444]
[1742342250868,3.61388053,1937.1,1936.9,11.09716444]
[1742342251061,3.61388053,1937.1,1936.9,12.63847267]
[1742342252192,3.61388053,1937.1,1936.9,7.47564267]
[1742342252388,3.61388053,1937.1,1936.9,1.01433444]
[1742342252587,8.77636053,1937.1,1936.9,5.93433444]
[1742342252791,8.77636053,1937.1,1936.9,1.01433444]
[1742342253095,5.16262,1937.0,1936.9,5.93433444]
[1742342254385,5.16262,1937.0,1936.9,6.00534958]
[1742342254764,5.97352,1937.0,1936.9,6.00534958]
[1742342254963,7.44849705,1937.0,1936.9,0.07101514]
[1742342255269,5.16288,1936.9,1936.8,4.919]
[1742342255466,8.77676053,1936.9,1936.8,4.919]
[1742342256555,8.77676053,1936.9,1936.8,5.93919161]
[1742342257553,3.61388053,1936.9,1936.8,5.93919161]
[1742342259398,9.58748053,1937.0,1936.8,5.93919161]
[1742342259601,8.77625053,1937.1,1936.8,6.70629161]
[1742342259753,3.61388053,1937.2,1936.8,7.37692077]
[1742342259960,3.61388053,1937.2,1936.8,12.53995077]
[1742342260154,8.77599053,1937.2,1936.8,12.53995077]
[1742342260393,11.1305,1937.2,1936.8,7.37692077]
[1742342260567,3.61388053,1937.1,1936.8,7.37692077]
[1742342261077,8.77638053,1937.1,1936.8,7.37692077]
[1742342261264,8.77638053,1937.1,1936.8,5.93919161]
[1742342261997,8.77638053,1937.1,1936.9,0.07110715]
[1742342262300,13.93895053,1937.1,1936.8,5.93919161]
[1742342262500,13.93895053,1937.1,1937.0,0.07100737]
[1742342262658,13.93895053,1937.1,1936.9,0.07110715]
[1742342262859,8.77638053,1937.1,1937.0,0.07100737]
[1742342263095,10.25083958,1937.1,1937.0,0.07100737]
[1742342263294,10.25083958,1937.1,1936.8,5.93919161]
[1742342263606,8.77638053,1937.1,1936.9,0.07110715]
[1742342263759,13.93893053,1937.1,1936.8,5.93919161]
[1742342264093,8.77638053,1937.1,1937.0,0.07100737]
[1742342264267,8.77638053,1937.1,1936.9,0.07110715]
[1742342264471,8.77638053,1937.1,1937.0,0.07100737]
[1742342264697,8.77638053,1937.1,1936.8,5.93919161]
[1742342264901,5.16264,1937.0,1936.9,0.07110715]
[1742342265106,5.16264,1937.0,1936.8,5.93919161]
[1742342265305,5.16264,1937.0,1936.9,0.07097419]
[1742342265630,5.16264,1937.0,1936.8,5.93919161]
[1742342265789,5.16264,1937.0,1936.9,0.07097419]
[1742342265993,8.77638053,1937.1,1936.8,5.93919161]
[1742342266211,8.77638053,1937.1,1936.9,0.07097419]
[1742342266382,8.77638053,1937.1,1936.8,5.93919161]
[1742342266584,8.77638053,1937.1,1937.0,0.0708744]
[1742342266786,8.77638053,1937.1,1936.8,5.93919161]
[1742342266997,8.77638053,1937.1,1937.0,0.0708744]
[1742342267203,8.77638053,1937.1,1936.8,5.93919161]
[1742342267492,8.77638053,1937.1,1937.0,0.0708744]
[1742342267699,10.25083858,1937.1,1937.0,0.0708744]
[1742342268115,10.25083858,1937.1,1936.8,5.93919161]
[1742342268328,8.77638053,1937.1,1936.9,0.07097419]
[1742342268685,5.16262,1937.0,1936.8,5.93919161]
[1742342269122,5.16262,1937.0,1936.8,40.93919161]
[1742342269321,8.77628053,1937.1,1936.8,40.93919161]
[1742342270829,5.16266,1937.0,1936.8,40.93919161]
[1742342271193,8.77628053,1937.1,1936.8,40.93919161]
[1742342272023,8.77628053,1937.1,1936.8,5.93919161]
[1742342272422,5.16189,1937.3,1936.8,7.30521077]
[1742342272721,8.77543053,1937.4,1936.9,40.93497]
[1742342272926,3.61388053,1937.4,1937.1,0.7721]
[1742342273222,8.77547053,1937.4,1937.2,4.918]
[1742342273427,13.93723053,1937.4,1937.2,4.918]
[1742342273591,13.93723053,1937.4,1937.2,39.918]
[1742342273793,8.77547053,1937.4,1937.2,39.918]
[1742342276029,8.77547053,1937.4,1937.3,0.07037853]
[1742342278729,5.16076,1937.7,1937.3,0.67420497]
[1742342278730,8.77476053,1937.7,1937.3,0.67420497]
[1742342278933,5.16129,1937.5,1937.4,0.7721]
[1742342279121,3.61388053,1937.5,1937.3,0.07037853]
[1742342279437,3.61388053,1937.5,1937.4,0.07027879]
[1742342279629,8.77498053,1937.6,1937.3,0.68103644]
[1742342279835,8.77498053,1937.6,1937.4,0.07027879]
[1742342280042,8.77498053,1937.6,1937.3,0.68103644]
[1742342280202,3.61388053,1937.6,1937.5,0.06999513]
[1742342280406,3.61388053,1937.6,1937.4,0.7721]
[1742342280608,5.16078,1937.7,1937.5,0.06999513]
[1742342280800,8.77466053,1937.7,1937.6,4.918]
[1742342281003,8.77466053,1937.7,1937.6,4.98780347]
[1742342284170,3.61388053,1937.7,1937.6,4.98780347]
[1742342285566,8.77417053,1937.9,1937.6,5.59099122]
[1742342285865,5.16029,1937.9,1937.7,0.7721]
[1742342286371,8.77385053,1938.0,1937.8,0.06920087]
[1742342286528,5.15954,1938.2,1937.8,0.06920087]
[1742342286861,8.77342053,1938.2,1937.9,0.7686]
[1742342287182,3.61388053,1938.1,1938.0,4.917]
[1742342287337,8.77357053,1938.1,1938.0,4.98595201]
[1742342289805,5.15969,1938.1,1938.0,4.98595201]
[1742342290210,8.77342053,1938.2,1938.0,4.98595201]
[1742342290929,13.93305053,1938.2,1938.0,4.98595201]
[1742342291068,8.77342053,1938.2,1938.0,5.79523324]
[1742342291774,8.77342053,1938.2,1938.0,40.79523324]
[1742342292293,5.15969,1938.1,1938.0,40.79523324]
[1742342292498,5.15969,1938.1,1938.0,5.79523324]
[1742342299109,5.15969,1938.1,1938.0,40.79523324]
[1742342302214,5.15969,1938.1,1938.0,39.98595201]
[1742342302408,8.77357053,1938.1,1938.0,4.98595201]
[1742342304319,8.77357053,1938.1,1938.0,0.06895201]
[1742342304543,9.57487053,1938.1,1938.0,4.98295201]
[1742342304826,9.57487053,1938.1,1938.0,0.06895201]
[1742342305034,11.04831158,1938.1,1938.0,0.06615015]
[1742342305226,11.04831158,1938.1,1938.0,0.06614814]
[1742342305417,5.96205,1937.7,1937.6,4.914]
[1742342305614,9.57593053,1937.7,1937.6,4.914]
[1742342305986,9.57593053,1937.7,1937.6,5.95134203]
[1742342306193,9.57593053,1937.7,1937.6,6.01773543]
[1742342310696,9.57593053,1937.7,1937.6,0.0663934]
[1742342311225,10.4765994,1937.7,1937.6,0.0663934]
[1742342313296,10.4491994,1937.7,1937.6,0.0663934]
[1742342313501,5.93519,1937.5,1937.4,5.94235025]